Cogmind - Beta 9.6 @@@ ROGUE MODE // 2020.08.29 @ 03:48:45 Player: Cracklepappy Result: Destroyed by G-34 Mercenary with Small Laser Performance ------------- Evolutions (0) 0 Regions Visited (2) 400 Robots Destroyed (29) 145 Value Destroyed (561) 561 Prototype IDs (2) 40 Alien Tech Used (0) 0 Bonus (0) 0 TOTAL SCORE: 1146 Bonus ------- None Cogmind --------- Core Integrity 0/250 Matter 249/300 Energy 247/250 System Corruption 0% Temperature Cool (12) Movement Treading (160) Location -10/Mines Parts ------- > --- POWER (1) -------- Ion Engine > --- PROPULSION (2) --- Light Treads Light Treads > --- UTILITY (2) ------ Small Storage Unit Large Storage Unit > --- WEAPON (2) ------- Assault Rifle Light Cannon > --- INVENTORY (12) --- Light Ion Engine Light Ion Engine Light Nuclear Core Light Treads Light Treads High-capacity Matter Pod (200) Improved Terrain Scanner Targeting Computer Targeting Computer Light Assault Rifle Light Assault Rifle Mining Laser Peak State ------------ > --- POWER ------------ Ion Engine > --- PROPULSION ------- Wheel Compact Wheel > --- UTILITY ---------- Small Storage Unit Large Storage Unit > --- WEAPON ----------- Light Assault Rifle Light Assault Rifle > --- INVENTORY -------- Light Ion Engine Light Treads Light Treads Light Treads Light Treads High-capacity Matter Pod Improved Terrain Scanner Assault Rifle Mining Laser [Rating: 8] Favorites ----------- Power Ion Engine Engine Ion Engine Propulsion Compact Wheel Treads Light Treads Wheel Compact Wheel Utility Small Storage Unit Storage Small Storage Unit Weapon Light Assault Rifle Energy Gun Medium Laser Ballistic Gun Light Assault Rifle Ballistic Cannon Light Cannon Launcher Grenade Launcher Special Weapon Mining Laser Build | -11 -10 -10 ------- Run | Scr Mat Min Slots Evolved . | . . . Power . | . . . Propulsion . | . . . Utility . | . . . Weapon . | . . . Parts Attached 31 | 7 14 10 Power 2 | 1 1 . Engine 2 | 1 1 . Core . | . . . Reactor . | . . . Propulsion 5 | 2 1 2 Treads 2 | . . 2 Leg . | . . . Wheel 3 | 2 1 . Hover . | . . . Flight . | . . . Utility 3 | 2 1 . Device . | . . . Storage 3 | 2 1 . Processor . | . . . Hackware . | . . . Protection . | . . . Artifact . | . . . Weapon 21 | 2 11 8 Energy Gun 3 | 1 2 . Energy Cannon . | . . . Ballistic Gun 10 | 1 5 4 Ballistic Cannon 2 | . . 2 Launcher 3 | . 3 . Special Weapon 3 | . 1 2 Impact Weapon . | . . . Slashing Weapon . | . . . Piercing Weapon . | . . . Special Melee Weapon . | . . . Unidentified Prototypes . | . . . Parts Lost 9 | . 4 5 Power 1 | . 1 . Propulsion 3 | . 1 2 Utility . | . . . Weapon 5 | . 2 3 Highest Loss Streak 3 | . 3 3 Average Slot Usage (%) 97 | . 96 99 Engine 13 | . 13 14 Treads 10 | . . 18 Wheel 16 | . 27 8 Storage 28 | . 28 28 Energy Gun 1 | . 2 . Ballistic Gun 22 | . 19 24 Launcher 1 | . 2 . Special Weapon 2 | . . 2 Naked Turns . | . . . Heaviest Build 30 | 16 27 30 Greatest Support 40 | 32 32 40 Greatest Overweight (x) 2 | . 1 2 Average Overweight (x) . | . . . Largest Inventory Capacity 12 | 8 12 12 Average Capacity 10 | 6 8 12 Most Carried 12 | 8 9 12 Average Carried 9 | 4 7 10 Final Capacity 12 | 8 12 12 Final Carried 12 | 8 9 12 Class Distribution -------------------- 100% | Mutant Dominant Class ---------------- Mutant | -10/Materials Mutant | -10/Mines Resources | -11 -10 -10 ----------- Run | Scr Mat Min Matter Collected 969 | 280 310 379 Remotely . | . . . Salvage Created 738 | 110 262 366 Parts 65 | 7 28 30 Haulers Intercepted 1 | . 1 . Recyclers Shooed . | . . . Parts Field Recycled . | . . . Retrieved Matter . | . . . Parts Self-Destructed . | . . . Prevented . | . . . Kills | -11 -10 -10 ------- Run | Scr Mat Min Combat Hostiles Destroyed 24 | . 11 13 Guns 19 | . 7 12 Cannons 1 | . . 1 AOE 4 | . 4 . Classes Destroyed 7 | 2 4 1 Worker 1 | . 1 . Tunneler 2 | 2 . . Hauler 1 | . 1 . Recycler 1 | 1 . . Swarmer 14 | . 6 8 Grunt 8 | . 5 3 Sentry 2 | . . 2 Best Kill Streak 3 | 1 3 3 Combat Bots Only 3 | . 3 3 Max Kills in Single Turn 1 | 1 1 1 Gunslinging . | . . . Exploded 1 | . 1 . Melee . | . . . Uniques/NPCs Destroyed . | . . . Combat | -11 -10 -10 -------- Run | Scr Mat Min Damage Taken 1199 | . 495 704 Core 256 | . 116 140 Absorbed by Shields . | . . . Core Remaining (%) 100 | 100 . . Volleys Fired 125 | 10 53 62 Largest 2 | 2 2 2 Hottest 120 | 70 100 120 Shots Fired 231 | 20 90 121 Gun 191 | 20 76 95 Cannon 3 | . . 3 Launcher 13 | . 13 . Special 24 | . 1 23 Kinetic 182 | 10 74 98 Thermal 36 | 10 3 23 Explosive 13 | . 13 . Electromagnetic . | . . . Robot Hit Streak 7 | 4 6 7 Robot Miss Streak 4 | 3 4 3 Penetration Max . | . . . Secondary Targets 2 | . . 2 Max Gunslinging Chain 1 | . . 1 Shots Hit Robots 108 | 11 47 50 Core Hits 55 | 5 27 23 Critical Hits 2 | . . 2 Critical Kills 2 | . . 2 Critical Parts Destroyed . | . . . Melee Attacks . | . . . Impact . | . . . Slashing . | . . . Piercing . | . . . Sneak Attacks . | . . . Combat Hostiles . | . . . Follow-up Attacks . | . . . Damage Inflicted 1331 | 125 742 464 Guns 910 | 125 358 427 Cannons 37 | . . 37 Explosions 384 | . 384 . Melee . | . . . Ramming . | . . . Kinetic 860 | 38 358 464 Thermal 87 | 87 . . Explosive 384 | . 384 . Electromagnetic . | . . . Impact . | . . . Slashing . | . . . Piercing . | . . . Highest Corruption . | . . . Average Corruption . | . . . Corruption Purged . | . . . Overload Shots . | . . . Overflow Damage . | . . . Projectiles . | . . . Explosions . | . . . Melee . | . . . Knockbacks . | . . . Impact . | . . . Kinetic . | . . . Secondary . | . . . Self-Inflicted Damage 92 | . 92 . Shots 4 | . 4 . Rammed . | . . . Targets Rammed . | . . . Kicked . | . . . Crushed . | . . . Highest Temperature 64 | 50 40 64 Average Temperature 20 | 25 13 21 Received Heat Transfer 321 | . 93 228 Siege Activations . | . . . Robots Corrupted . | . . . Combat Hostiles . | . . . Parts Fried . | . . . Impact Corruptions . | . . . Robots Melted . | . . . Combat Hostiles . | . . . Parts Melted . | . . . Heat Transferred 259 | 259 . . Parts Sabotaged . | . . . Parts Stolen . | . . . Parts Stripped . | . . . Power Chain Reactions . | . . . Missiles Intercepted . | . . . Alert | -11 -10 -10 ------- Run | Scr Mat Min Peak Influence 223 | 15 175 223 Average Influence 49 | 5 42 59 Maximum Alert Level 1 | . . 1 Low Security (%) 95 | 100 100 91 Level 1 4 | . . 8 Level 2 . | . . . Level 3 . | . . . Level 4 . | . . . Level 5 . | . . . High Security . | . . . Max Security . | . . . Squads Dispatched 1 | . 1 . Investigation . | . . . Extermination . | . . . Reinforcement 1 | . 1 . Assault . | . . . Garrison . | . . . Intercept . | . . . Construction Impeded . | . . . Haulers Reinforced . | . . . Stealth | -11 -10 -10 --------- Run | Scr Mat Min Distress Signals . | . . . Communications Jammed . | . . . Distress Signals . | . . . Times Spotted 37 | . 20 17 Peak Tracking Total 4 | . 4 4 Tactical Retreats 1 | . 1 . Traps | -11 -10 -10 ------- Run | Scr Mat Min Traps Triggered . | . . . Indirectly . | . . . Trap Hack Attempts . | . . . Triggered . | . . . Disarmed . | . . . Reprogrammed . | . . . Reused . | . . . Traps Extracted . | . . . Installed . | . . . Triggered . | . . . Machines | -11 -10 -10 ---------- Run | Scr Mat Min Machines Disabled 1 | . 1 . Max in Single Turn 1 | . 1 . Machines Sabotaged . | . . . Garrisons Compromised . | . . . Overloaded Fab Kills . | . . . Fab Network Shutdowns . | . . . Hacking | -11 -10 -10 --------- Run | Scr Mat Min Machines Accessed 5 | . 5 . Terminals 5 | . 5 . Fabricators . | . . . Repair Stations . | . . . Recycling Units . | . . . Scanalyzers . | . . . Garrison Access . | . . . Total Hacks 13 | . 13 . Successful 9 | . 9 . Failed 4 | . 4 . Catastrophic . | . . . Database Lockouts . | . . . Manual 8 | . 8 . Terminals 13 | . 13 . Fabricators . | . . . Repair Stations . | . . . Recycling Units . | . . . Scanalyzers . | . . . Garrison Access . | . . . Terminal Hacks 9 | . 9 . Part Schematic 2 | . 2 . Prototype ID Bank 2 | . 2 . Unreport Threat 2 | . 2 . Locate Traps 2 | . 2 . Hauler Manifests 1 | . 1 . Fabricator Hacks . | . . . Repair Station Hacks . | . . . Recycling Unit Hacks . | . . . Scanalyzer . | . . . Garrison Access Hacks . | . . . Unauthorized Hacks . | . . . Terminals . | . . . Fabricators . | . . . Repair Stations . | . . . Recycling Units . | . . . Scanalyzers . | . . . Garrison Access . | . . . Data Cores Recovered . | . . . Used . | . . . Hacking Detections 4 | . 4 . Full Trace Events . | . . . Feedback Events . | . . . Feedback Blocked . | . . . Robot Schematics Acquired . | . . . Robots Built . | . . . Matter . | . . . Time . | . . . Total Robot Build Rating . | . . . Part Schematics Acquired 1 | . 1 . Parts Built . | . . . Matter . | . . . Time . | . . . Total Part Build Rating . | . . . Parts Repaired . | . . . Time . | . . . Parts Recycled . | . . . Recycled Matter . | . . . Retrieved Matter . | . . . Retrieved Components . | . . . Parts Scanalyzed . | . . . Part Schematics Acquired . | . . . Parts Damaged . | . . . Bothacking | -11 -10 -10 ------------ Run | Scr Mat Min Used RIF Installer . | . . . Robots Hacked . | . . . Non-combat . | . . . Combat . | . . . Robot Hacks Applied . | . . . Relay Couplers Released . | . . . Robots Rewired . | . . . Allies Hacked . | . . . Hacks Repelled . | . . . Allies | -11 -10 -10 -------- Run | Scr Mat Min Total Allies . | . . . Largest Group . | . . . Highest-Rated Group . | . . . Highest-Rated Ally . | . . . Total Orders . | . . . Ally Attacks . | . . . Total Damage . | . . . Kills . | . . . Allies Corrupted . | . . . Allies Melted . | . . . Intel | -11 -10 -10 ------- Run | Scr Mat Min Robot Analysis Total . | . . . Derelict Logs Recovered 2 | . . 2 Drone Launches . | . . . Drone Recoveries . | . . . Exploration | -11 -10 -10 ------------- Run | Scr Mat Min Turns Passed 1781 | 123 717 941 Spaces Moved 1123 | 76 519 528 Core 2 | 2 . . Treads 283 | . . 283 Legs . | . . . Wheels 838 | 74 519 245 Hover . | . . . Flight . | . . . Fastest Speed 50 | 50 90 90 Average Speed 113 | 98 96 132 Slowest Speed 160 | 100 100 160 Overloaded Moves . | . . . Propulsion Burnouts . | . . . Robots Hopped . | . . . Cave-ins Triggered . | . . . Exploration Rate (%) 63 | 7 91 92 Regions Visited 2 Branch Regions 1 Pre-discovered Areas 1 | . . 1 Known Exits Taken . | . . . Unknown Exits Taken 2 | 1 1 . Scrap Searched 2 | . . 2 Spaces Dug 1 | . 1 . Terrain Destroyed 55 | . 53 2 Melee . | . . . Projectile 3 | . 1 2 AOE 52 | . 52 . Actions | -11 -10 -10 --------- Run | Scr Mat Min Total 1382 | 104 658 620 Wait 69 | . 59 10 Move 1121 | 75 518 528 Hop . | . . . Pick Up 29 | 12 8 9 Fast Attach 4 | 3 1 . Attach 13 | 4 4 5 Detach . | . . . Swap 14 | . 9 5 Drop 7 | . 6 1 Fire 125 | 10 53 62 Melee . | . . . Ram . | . . . Kick . | . . . Crush . | . . . Escape Stasis . | . . . Rewire . | . . . Trap . | . . . Miscellaneous . | . . . Route ------- -11/Scrapyard -10/Materials (discovered 3 exits: [*Mat x2] / [*Min]) -10/Mines (discovered 2 exits: [*Mat x2]) History --------- Turn | Location | Event 10 | -11/Scrapyard | Discovered new exit (range 16) 124 | -11/Scrapyard | Entered Materials 303 | -10/Materials | Build established: Mutant 327 | -10/Materials | Discovered new exit (range 10) 542 | -10/Materials | Lost 3 parts (1p1n1w) 686 | -10/Materials | Discovered new exit (range 15) 769 | -10/Materials | Discovered new exit (range 5) 841 | -10/Materials | Entered Mines 856 | -10/Mines | Learned 4 Materials zone layouts 863 | -10/Mines | Met a Derelict bent on vengeance 1087 | -10/Mines | Core integrity fell below 50% 1149 | -10/Mines | Lost 3 parts (1n2w) 1149 | -10/Mines | Core integrity fell below 20% 1204 | -10/Mines | Discovered new exit (range 12) 1296 | -10/Mines | Discovered new exit (range 5) 1498 | -10/Mines | Excavation squad dispatched 1498 | -10/Mines | A large section of the Mines collapsed 1696 | -10/Mines | Learned location of Mines (-9) 1782 | -10/Mines | Destroyed by G-34 Mercenary with Small Laser Last Messages --------------- 01296_ EXIT=FOUND 01347_ K-01 Serf cleans the Laser Drill. 01354_ K-01 Serf collects debris. 01367_ K-01 Serf cleans the Laser Drill. 01498_ ALERT: Suspicious cave-in, suspected derelict activity in mines. Dispatching escorted excavation squad. 01665_ Lgt. Assault Rifle destroyed. 01672_ Y-45 Defender destroyed. 01672_ Switching to secondary target: Y-45 Defender. 01683_ Y-45 Defender destroyed. 01688_ Acquired 60 matter. 01689_ Acquired 15 matter. 01696_ Acquired derelict log, extracted data. World map updated: -9/Mines. 01702_ Acquired Targeting Computer. 01705_ Acquired Lgt. Cannon. 01709_ Dropped Lgt. Assault Rifle. 01709_ Acquired Targeting Computer. 01775_ T-07 Excavator is excavating. 01779_ G-34 Mercenary destroyed. Map ----- +----------------------------------------------------+ | | | | | | | | | | | | | | | | | | | | | | | | | | | | | ?????????????????????????????????????? | | ?????????????????????????????????????? | | ???????????????????????####??????????? | | ????????????????????#### #??????????? | | ???????????????????## # ?????????? | | ???????????????##### ### ?????????? | | ??????????????## ## ## # #????????? | | ????????####### #" # #### ####????? | | ??####?##" ## ## # #;# ##???? | | ### #?#"" #[ # #" ### ### ##??? | | ###[ !+% # # ###;;;# ##?? | | ## ! *+ ! ##" ##@### #?? | | ##"" #* ##### ## ## ##? | | ###" ## #???# ##gg=### #? | | ####### #???##### "# #? | | ####### #??????#tg # #? | | ### #???????# %; #? | | ### ##????????# #? | | ### #?####?????????# #? | | #### ##??????????????# #? | | #### ##??????????????## ; #? | | #?# ##??????????????## ##? | | #?# ##??????????????## ##?? | | #?# ################# ####??? | | #?# ##?????? | | ##?##################### ##?????? | | ##??????????????????????## #?????? | | ###????????????????????????# #?????? | | ???????????????????????????# ##?????? | | ???????????????????????????# ##??????? | | ###????????????????????????# #???????? | | ##??????????????????????# #???????? | | #????????????????####??# #???????? | | ##??????????????## ##?# #???????? | | #??????????????# #?# #???????? | | #??????????????# #?# #???????? | +----------------------------------------------------+ Best States ------------- Heat Dissipation 25 Energy Generation 10 Energy Capacity 250 Matter Stores 300 Matter Capacity 300 Sight Range 16 Terrain Scan Density 10 Evasion (%) 42 Recoil Reduction 2 Item Schematics ----------------- Hcp. Storage Unit | -10/Materials | Hacked Robot Schematics ------------------ None Fabricated ------------ Nothing Alien Tech Used ----------------- None Achievements -------------- None Challenges ------------ None Game ------ Seed OmegaDimensionalRegenerator Manual? 0 Play Time 00:14:43 Cumulative 153.1 hours Start 2020.08.29 @ 03:30:41 End 2020.08.29 @ 03:48:45 Sessions 1 Manual Loads 0 Difficulty Rogue Special Mode None Game No. 185 Rogue 185 Adventurer 0 Explorer 0 Win Type - Total 2 Types 2/0/0/0/0/0/0 Lore% 61 Gallery% 71 Achievement% 53 Wizard Run 0 Options --------- ASCII 0 Keyboard 0 Movement Numpad Keybinds 0 Fullscreen 2 Font 24/Smallcaps Map View 76x50 Tactical HUD 1 Map Filters NONE Filters NONE Steam 1 RUN: 399cee3e-e782-4128-9fe2-b96c669a5cdd